[Event "Titled Tuesday Blitz May 24 Early 2022"]
[White "Sovetbekova, Nurai"]
[Black "Kim, Sergey"]
[WhiteFideId "13801910"]
[BlackFideId "13700570"]
[WhiteElo "1660"]
[BlackElo "2548"]
[Result "1/2-1/2"]
[Round "05"]
[TimeControl "180+1"]
[Date "2022.05.25"]
[WhiteClock "0:00:11"]
[BlackClock "0:00:12"]

1. d4 {[%clk 0:03:00]}  Nf6 {[%clk 0:02:59]} 2. c4 {[%clk 0:03:00]}  g6 {[%clk 0:03:00]} 3. g3 {[%clk 0:03:00]}  Bg7 {[%clk 0:03:00]} 4. Bg2 {[%clk 0:03:01]}  d6 {[%clk 0:03:01]} 5. Nc3 {[%clk 0:03:00]}  O-O {[%clk 0:03:01]} 6. Nf3 {[%clk 0:03:00]}  Nbd7 {[%clk 0:03:01]} 7. O-O {[%clk 0:03:00]}  e5 {[%clk 0:03:01]} 8. e4 {[%clk 0:03:00]}  exd4 {[%clk 0:03:01]} 9. Nxd4 {[%clk 0:02:59]}  Re8 {[%clk 0:03:01]} 10. h3 {[%clk 0:02:57]}  Nc5 {[%clk 0:03:02]} 11. Qc2 {[%clk 0:02:45]}  c6 {[%clk 0:03:01]} 12. Be3 {[%clk 0:02:39]}  a5 {[%clk 0:02:59]} 13. Rad1 {[%clk 0:02:34]}  Qe7 {[%clk 0:02:57]} 14. Rfe1 {[%clk 0:02:27]}  Nfd7 {[%clk 0:02:54]} 15. f4 {[%clk 0:02:16]}  a4 {[%clk 0:02:52]} 16. b3 {[%clk 0:02:13]}  Nb6 {[%clk 0:02:48]} 17. Bf2 {[%clk 0:02:04]}  axb3 {[%clk 0:02:45]} 18. axb3 {[%clk 0:02:05]}  Nbd7 {[%clk 0:02:44]} 19. b4 {[%clk 0:01:57]}  Ne6 {[%clk 0:02:43]} 20. Nf5 {[%clk 0:01:39]}  gxf5 {[%clk 0:02:34]} 21. exf5 {[%clk 0:01:39]}  Qf6 {[%clk 0:02:18]} 22. fxe6 {[%clk 0:01:36]}  Qxc3 {[%clk 0:02:09]} 23. exd7 {[%clk 0:01:10]}  Bxd7 {[%clk 0:02:07]} 24. Rxe8+ {[%clk 0:01:08]}  Rxe8 {[%clk 0:02:06]} 25. Qxc3 {[%clk 0:01:08]}  Bxc3 {[%clk 0:02:05]} 26. Rxd6 {[%clk 0:01:08]}  Be6 {[%clk 0:02:04]} 27. b5 {[%clk 0:01:05]}  Bb4 {[%clk 0:01:51]} 28. Rd1 {[%clk 0:00:57]}  Bxc4 {[%clk 0:01:42]} 29. bxc6 {[%clk 0:00:54]}  bxc6 {[%clk 0:01:42]} 30. Bxc6 {[%clk 0:00:54]}  Rc8 {[%clk 0:01:39]} 31. Bd7 {[%clk 0:00:50]}  Rd8 {[%clk 0:01:28]} 32. Bb6 {[%clk 0:00:39]}  Rb8 {[%clk 0:01:23]} 33. Bc7 {[%clk 0:00:39]}  Rb7 {[%clk 0:01:17]} 34. Be5 {[%clk 0:00:37]}  Bc5+ {[%clk 0:01:12]} 35. Kh1 {[%clk 0:00:37]}  Rb3 {[%clk 0:01:08]} 36. Ba4 {[%clk 0:00:34]}  Rd3 {[%clk 0:00:53]} 37. Rxd3 {[%clk 0:00:31]}  Bxd3 {[%clk 0:00:54]} 38. Kg2 {[%clk 0:00:31]}  Be4+ {[%clk 0:00:54]} 39. Kf1 {[%clk 0:00:31]}  h5 {[%clk 0:00:49]} 40. Bd7 {[%clk 0:00:29]}  Kf8 {[%clk 0:00:45]} 41. Ke2 {[%clk 0:00:29]}  Ke7 {[%clk 0:00:45]} 42. Bb5 {[%clk 0:00:28]}  Bg2 {[%clk 0:00:43]} 43. h4 {[%clk 0:00:27]}  Bh3 {[%clk 0:00:41]} 44. Bc6 {[%clk 0:00:25]}  Ke6 {[%clk 0:00:37]} 45. Bb7 {[%clk 0:00:22]}  Bg4+ {[%clk 0:00:37]} 46. Bf3 {[%clk 0:00:22]}  Kf5 {[%clk 0:00:36]} 47. Bc7 {[%clk 0:00:20]}  Bb4 {[%clk 0:00:34]} 48. Bb6 {[%clk 0:00:20]}  Bc3 {[%clk 0:00:34]} 49. Bc5 {[%clk 0:00:19]}  Ba5 {[%clk 0:00:33]} 50. Bd4 {[%clk 0:00:19]}  Bb4 {[%clk 0:00:33]} 51. Be5 {[%clk 0:00:20]}  Bc5 {[%clk 0:00:33]} 52. Bc3 {[%clk 0:00:19]}  Bb6 {[%clk 0:00:33]} 53. Bd2 {[%clk 0:00:19]}  Bc5 {[%clk 0:00:33]} 54. Be3 {[%clk 0:00:20]}  Bb4 {[%clk 0:00:33]} 55. Kf2 {[%clk 0:00:20]}  Bd6 {[%clk 0:00:33]} 56. Bg2 {[%clk 0:00:19]}  Ke6 {[%clk 0:00:32]} 57. Bf1 {[%clk 0:00:19]}  Kd5 {[%clk 0:00:31]} 58. Bg2+ {[%clk 0:00:19]}  Ke6 {[%clk 0:00:31]} 59. Bf1 {[%clk 0:00:19]}  Kd5 {[%clk 0:00:31]} 60. Ba6 {[%clk 0:00:19]}  Ke4 {[%clk 0:00:30]} 61. Bb7+ {[%clk 0:00:20]}  Kd3 {[%clk 0:00:31]} 62. Bd5 {[%clk 0:00:19]}  f5 {[%clk 0:00:30]} 63. Bc6 {[%clk 0:00:19]}  Bb4 {[%clk 0:00:29]} 64. Bb5+ {[%clk 0:00:19]}  Ke4 {[%clk 0:00:30]} 65. Bc6+ {[%clk 0:00:19]}  Kd3 {[%clk 0:00:30]} 66. Bb5+ {[%clk 0:00:18]}  Ke4 {[%clk 0:00:29]} 67. Bb6 {[%clk 0:00:18]}  Bc3 {[%clk 0:00:26]} 68. Bc6+ {[%clk 0:00:18]}  Kd3 {[%clk 0:00:26]} 69. Bd7 {[%clk 0:00:18]}  Ke4 {[%clk 0:00:24]} 70. Bc6+ {[%clk 0:00:18]}  Kd3 {[%clk 0:00:24]} 71. Bc5 {[%clk 0:00:16]}  Bd2 {[%clk 0:00:23]} 72. Bb6 {[%clk 0:00:15]}  Kc2 {[%clk 0:00:23]} 73. Bd5 {[%clk 0:00:14]}  Kd3 {[%clk 0:00:21]} 74. Bc6 {[%clk 0:00:14]}  Kc2 {[%clk 0:00:21]} 75. Bb5 {[%clk 0:00:14]}  Kd1 {[%clk 0:00:20]} 76. Bc4 {[%clk 0:00:14]}  Be1+ {[%clk 0:00:20]} 77. Kg2 {[%clk 0:00:13]}  Kc2 {[%clk 0:00:18]} 78. Bb5 {[%clk 0:00:13]}  Kb3 {[%clk 0:00:17]} 79. Bd7 {[%clk 0:00:13]}  Kc4 {[%clk 0:00:17]} 80. Be6+ {[%clk 0:00:13]}  Kd3 {[%clk 0:00:17]} 81. Bf2 {[%clk 0:00:13]}  Bd2 {[%clk 0:00:15]} 82. Bc8 {[%clk 0:00:13]}  Ke2 {[%clk 0:00:15]} 83. Ba6+ {[%clk 0:00:13]}  Kd1 {[%clk 0:00:15]} 84. Bc4 {[%clk 0:00:13]}  Kc2 {[%clk 0:00:15]} 85. Bd5 {[%clk 0:00:13]}  Kd3 {[%clk 0:00:14]} 86. Bf3 {[%clk 0:00:14]}  Bc3 {[%clk 0:00:12]} 87. Bxg4 {[%clk 0:00:14]}  fxg4 {[%clk 0:00:12]} 88. Bc5 {[%clk 0:00:13]}  Ke4 {[%clk 0:00:11]} 89. Bb6 {[%clk 0:00:12]}  Be1 {[%clk 0:00:11]} 90. Bf2 {[%clk 0:00:11]}  Bd2 {[%clk 0:00:11]} 91. Bb6 {[%clk 0:00:11]}  Be1 {[%clk 0:00:11]} 92. Bc7 {[%clk 0:00:11]}  Bd2 {[%clk 0:00:11]} 93. Kf1 {[%clk 0:00:11]}  Be3 {[%clk 0:00:11]} 94. Ke2 {[%clk 0:00:11]}  Bd4 {[%clk 0:00:11]} 95. Bd6 {[%clk 0:00:11]}  Bb6 {[%clk 0:00:11]} 96. Bb4 {[%clk 0:00:11]}  Bd4 {[%clk 0:00:11]} 97. Bd2 {[%clk 0:00:11]}  Bc5 {[%clk 0:00:10]} 98. Be1 {[%clk 0:00:12]}  Bd4 {[%clk 0:00:10]} 99. Bf2 {[%clk 0:00:12]}  Bf6 {[%clk 0:00:11]} 100. Bc5 {[%clk 0:00:12]}  Bg7 {[%clk 0:00:11]} 101. Bf2 {[%clk 0:00:12]}  Bf6 {[%clk 0:00:11]} 102. Bc5 {[%clk 0:00:12]}  Bg7 {[%clk 0:00:12]} 103. Be7 {[%clk 0:00:12]}  Bd4 {[%clk 0:00:11]} 104. Bg5 {[%clk 0:00:12]}  Bg7 {[%clk 0:00:11]} 105. Bd8 {[%clk 0:00:11]}  Bd4 {[%clk 0:00:11]} 106. Bc7 {[%clk 0:00:11]}  Bf6 {[%clk 0:00:11]} 107. Bb6 {[%clk 0:00:10]}  Bg7 {[%clk 0:00:11]} 108. Bc7 {[%clk 0:00:10]}  Bf6 {[%clk 0:00:11]} 109. Be5 {[%clk 0:00:10]}  Bxe5 {[%clk 0:00:11]} 110. fxe5 {[%clk 0:00:11]}  Kxe5 {[%clk 0:00:12]} 111. Ke3 {[%clk 0:00:12]}  Kf5 {[%clk 0:00:12]} 112. Kd4 {[%clk 0:00:11]}  Kf6 {[%clk 0:00:11]} 113. Ke4 {[%clk 0:00:09]}  Ke6 {[%clk 0:00:11]} 114. Kf4 {[%clk 0:00:10]}  Kf6 {[%clk 0:00:11]} 115. Ke4 {[%clk 0:00:10]}  Ke6 {[%clk 0:00:11]} 116. Kf4 {[%clk 0:00:11]}  Kf6 {[%clk 0:00:12]} 117. Ke4 {[%clk 0:00:11]} 1/2-1/2


[Site "https://www.chess.com"]

[Event "Titled Tuesday Blitz May 24 Early 2022"]
[White "Stanisz, Patryk"]
[Black "Shton, Roman"]
[WhiteFideId "1123106"]
[BlackFideId "14137461"]
[WhiteElo "1833"]
[BlackElo "2013"]
[Result "1-0"]
[Round "05"]
[TimeControl "180+1"]
[Date "2022.05.25"]
[WhiteClock "0:01:19"]
[BlackClock "0:01:48"]

1. Nf3 {[%clk 0:03:00]}  d5 {[%clk 0:02:55]} 2. d4 {[%clk 0:03:00]}  Nf6 {[%clk 0:02:55]} 3. c4 {[%clk 0:03:00]}  e6 {[%clk 0:02:55]} 4. Nc3 {[%clk 0:03:00]}  Bb4 {[%clk 0:02:54]} 5. Qa4+ {[%clk 0:02:57]}  Nc6 {[%clk 0:02:53]} 6. e3 {[%clk 0:02:55]}  O-O {[%clk 0:02:52]} 7. Bd2 {[%clk 0:02:52]}  Bd7 {[%clk 0:02:52]} 8. Qc2 {[%clk 0:02:52]}  Re8 {[%clk 0:02:50]} 9. cxd5 {[%clk 0:02:38]}  exd5 {[%clk 0:02:48]} 10. Bd3 {[%clk 0:02:36]}  Bxc3 {[%clk 0:02:37]} 11. Bxc3 {[%clk 0:02:35]}  Ne4 {[%clk 0:02:37]} 12. O-O {[%clk 0:02:30]}  Bg4 {[%clk 0:02:30]} 13. Nd2 {[%clk 0:02:29]}  Bf5 {[%clk 0:02:22]} 14. Nxe4 {[%clk 0:02:15]}  Bxe4 {[%clk 0:02:21]} 15. Qe2 {[%clk 0:02:06]}  Qh4 {[%clk 0:02:18]} 16. Bb5 {[%clk 0:01:57]}  Ne7 {[%clk 0:02:06]} 17. Bxe8 {[%clk 0:01:50]}  Rxe8 {[%clk 0:02:07]} 18. f3 {[%clk 0:01:49]}  Bg6 {[%clk 0:02:04]} 19. Rae1 {[%clk 0:01:31]}  Nf5 {[%clk 0:01:55]} 20. Qb5 {[%clk 0:01:25]}  c6 {[%clk 0:01:48]} 21. Qxb7 {[%clk 0:01:23]}  Nxe3 {[%clk 0:01:48]} 22. Rxe3 {[%clk 0:01:19]} 1-0


[Site "https://www.chess.com"]

[Event "Titled Tuesday Blitz May 24 Early 2022"]
[White "Taichman, Ori"]
[Black "Seo, Jung Min"]
[WhiteFideId "2804069"]
[BlackFideId "1734687"]
[WhiteElo "2227"]
[BlackElo "2401"]
[Result "0-1"]
[Round "05"]
[TimeControl "180+1"]
[Date "2022.05.24"]
[WhiteClock "0:01:01"]
[BlackClock "0:02:03"]

1. e4 {[%clk 0:03:00]}  c5 {[%clk 0:02:59]} 2. Nc3 {[%clk 0:03:00]}  a6 {[%clk 0:02:58]} 3. g3 {[%clk 0:02:59]}  b5 {[%clk 0:02:57]} 4. Bg2 {[%clk 0:02:59]}  Bb7 {[%clk 0:02:58]} 5. Nge2 {[%clk 0:02:58]}  d6 {[%clk 0:02:58]} 6. O-O {[%clk 0:02:53]}  Nf6 {[%clk 0:02:57]} 7. d4 {[%clk 0:02:52]}  cxd4 {[%clk 0:02:57]} 8. Nxd4 {[%clk 0:02:52]}  Nbd7 {[%clk 0:02:47]} 9. a4 {[%clk 0:02:46]}  bxa4 {[%clk 0:02:44]} 10. Rxa4 {[%clk 0:02:44]}  e6 {[%clk 0:02:44]} 11. Rb4 {[%clk 0:02:43]}  Rb8 {[%clk 0:02:35]} 12. Rxb7 {[%clk 0:02:29]}  Rxb7 {[%clk 0:02:35]} 13. e5 {[%clk 0:02:30]}  dxe5 {[%clk 0:02:35]} 14. Nxe6 {[%clk 0:02:28]}  fxe6 {[%clk 0:02:35]} 15. Bxb7 {[%clk 0:02:28]}  Qb6 {[%clk 0:02:35]} 16. Bg2 {[%clk 0:02:19]}  Bb4 {[%clk 0:02:34]} 17. Be3 {[%clk 0:02:14]}  Qc7 {[%clk 0:02:32]} 18. Ne4 {[%clk 0:02:10]}  Nxe4 {[%clk 0:02:32]} 19. Bxe4 {[%clk 0:02:10]}  O-O {[%clk 0:02:31]} 20. Qg4 {[%clk 0:02:02]}  Bc5 {[%clk 0:02:20]} 21. Qxe6+ {[%clk 0:02:01]}  Kh8 {[%clk 0:02:20]} 22. Qh3 {[%clk 0:01:42]}  Nf6 {[%clk 0:02:19]} 23. Qf5 {[%clk 0:01:15]}  Bxe3 {[%clk 0:02:16]} 24. fxe3 {[%clk 0:01:14]}  Qb6 {[%clk 0:02:13]} 25. Qxe5 {[%clk 0:01:02]}  Qxe3+ {[%clk 0:02:09]} 26. Kg2 {[%clk 0:01:02]}  Qe2+ {[%clk 0:02:03]} 27. Rf2 {[%clk 0:01:02]}  Qxf2+ {[%clk 0:02:02]} 28. Kxf2 {[%clk 0:01:01]}  Ng4+ {[%clk 0:02:03]} 0-1


[Site "https://www.chess.com"]

[Event "Titled Tuesday Blitz May 24 Early 2022"]
[White "Tarigan, Gilbert Elroy"]
[Black "Klekowski, Maciej"]
[WhiteFideId "7108133"]
[BlackFideId "1132717"]
[WhiteElo "1908"]
[BlackElo "2476"]
[Result "0-1"]
[Round "05"]
[TimeControl "180+1"]
[Date "2022.05.24"]
[WhiteClock "0:00:02"]
[BlackClock "0:00:44"]

1. d4 {[%clk 0:03:00]}  Nf6 {[%clk 0:02:59]} 2. Nf3 {[%clk 0:03:00]}  d6 {[%clk 0:03:00]} 3. c4 {[%clk 0:03:00]}  Nbd7 {[%clk 0:03:00]} 4. Nc3 {[%clk 0:02:59]}  e5 {[%clk 0:03:01]} 5. e4 {[%clk 0:02:58]}  Be7 {[%clk 0:03:01]} 6. g3 {[%clk 0:02:57]}  O-O {[%clk 0:03:01]} 7. Bg2 {[%clk 0:02:57]}  c6 {[%clk 0:02:53]} 8. O-O {[%clk 0:02:57]}  Qc7 {[%clk 0:02:51]} 9. Re1 {[%clk 0:02:57]}  exd4 {[%clk 0:02:47]} 10. Nxd4 {[%clk 0:02:58]}  Nc5 {[%clk 0:02:46]} 11. h3 {[%clk 0:02:56]}  a5 {[%clk 0:02:46]} 12. b3 {[%clk 0:02:26]}  Re8 {[%clk 0:02:46]} 13. Bb2 {[%clk 0:02:27]}  Bf8 {[%clk 0:02:46]} 14. Rc1 {[%clk 0:02:21]}  Nfd7 {[%clk 0:02:44]} 15. f4 {[%clk 0:02:16]}  a4 {[%clk 0:02:38]} 16. b4 {[%clk 0:02:10]}  a3 {[%clk 0:02:38]} 17. Ba1 {[%clk 0:02:11]}  Ne6 {[%clk 0:02:38]} 18. Nxe6 {[%clk 0:01:53]}  Rxe6 {[%clk 0:02:39]} 19. Nd5 {[%clk 0:01:45]}  Qd8 {[%clk 0:02:35]} 20. Ne3 {[%clk 0:01:39]}  Nf6 {[%clk 0:02:29]} 21. Qd3 {[%clk 0:01:38]}  Nh5 {[%clk 0:02:20]} 22. Kh2 {[%clk 0:01:36]}  Rg6 {[%clk 0:02:18]} 23. Nf1 {[%clk 0:01:29]}  Ra4 {[%clk 0:02:15]} 24. Bc3 {[%clk 0:01:28]}  Rh6 {[%clk 0:02:09]} 25. e5 {[%clk 0:01:17]}  d5 {[%clk 0:01:56]} 26. cxd5 {[%clk 0:01:15]}  cxd5 {[%clk 0:01:57]} 27. Qxd5 {[%clk 0:01:06]}  Qxd5 {[%clk 0:01:48]} 28. Bxd5 {[%clk 0:01:07]}  Bxh3 {[%clk 0:01:49]} 29. Bb3 {[%clk 0:00:49]}  Bxf1 {[%clk 0:01:21]} 30. Bxa4 {[%clk 0:00:41]}  Bc4 {[%clk 0:01:21]} 31. Kg2 {[%clk 0:00:34]}  Bxa2 {[%clk 0:01:21]} 32. Red1 {[%clk 0:00:31]}  Rg6 {[%clk 0:01:17]} 33. Kf2 {[%clk 0:00:24]}  Nxg3 {[%clk 0:01:15]} 34. Rd4 {[%clk 0:00:18]}  Be6 {[%clk 0:01:04]} 35. Bc2 {[%clk 0:00:16]}  Nf5 {[%clk 0:00:56]} 36. Rd8 {[%clk 0:00:17]}  Rg4 {[%clk 0:00:50]} 37. Kf3 {[%clk 0:00:09]}  Rg3+ {[%clk 0:00:49]} 38. Ke2 {[%clk 0:00:01]}  Rxc3 {[%clk 0:00:49]} 39. Kd2 {[%clk 0:00:02]}  Rc8 {[%clk 0:00:44]} 0-1


[Site "https://www.chess.com"]

[Event "Titled Tuesday Blitz May 24 Early 2022"]
[White "Vainio, Ville"]
[Black "Urazayev, Arystanbek"]
[WhiteFideId "507270"]
[BlackFideId "13709810"]
[WhiteElo "2232"]
[BlackElo "2422"]
[Result "0-1"]
[Round "05"]
[TimeControl "180+1"]
[Date "2022.05.25"]
[WhiteClock "0:00:08"]
[BlackClock "0:01:56"]

1. e4 {[%clk 0:03:00]}  e5 {[%clk 0:02:59]} 2. Nf3 {[%clk 0:03:01]}  Nc6 {[%clk 0:03:00]} 3. Bc4 {[%clk 0:03:01]}  Bc5 {[%clk 0:03:00]} 4. b4 {[%clk 0:03:00]}  Bxb4 {[%clk 0:03:00]} 5. c3 {[%clk 0:03:01]}  Be7 {[%clk 0:03:01]} 6. d4 {[%clk 0:03:01]}  Na5 {[%clk 0:03:01]} 7. Nxe5 {[%clk 0:03:01]}  Nxc4 {[%clk 0:03:02]} 8. Nxc4 {[%clk 0:03:02]}  d5 {[%clk 0:03:02]} 9. exd5 {[%clk 0:03:03]}  Qxd5 {[%clk 0:03:03]} 10. Ne3 {[%clk 0:03:04]}  Qd8 {[%clk 0:03:04]} 11. c4 {[%clk 0:03:04]}  Nf6 {[%clk 0:03:04]} 12. Nc3 {[%clk 0:03:04]}  O-O {[%clk 0:03:04]} 13. O-O {[%clk 0:03:03]}  c6 {[%clk 0:03:05]} 14. d5 {[%clk 0:02:51]}  cxd5 {[%clk 0:03:03]} 15. Ncxd5 {[%clk 0:02:39]}  Nxd5 {[%clk 0:03:01]} 16. cxd5 {[%clk 0:02:40]}  Bd6 {[%clk 0:02:59]} 17. Qh5 {[%clk 0:02:20]}  g6 {[%clk 0:02:53]} 18. Qf3 {[%clk 0:02:02]}  Be5 {[%clk 0:02:50]} 19. Rb1 {[%clk 0:01:57]}  b6 {[%clk 0:02:50]} 20. Bb2 {[%clk 0:01:43]}  Bxb2 {[%clk 0:02:49]} 21. Rxb2 {[%clk 0:01:44]}  Bd7 {[%clk 0:02:45]} 22. Rd1 {[%clk 0:01:37]}  Rc8 {[%clk 0:02:44]} 23. d6 {[%clk 0:01:29]}  Bc6 {[%clk 0:02:44]} 24. Qf4 {[%clk 0:01:18]}  Qd7 {[%clk 0:02:30]} 25. Ng4 {[%clk 0:00:58]}  Qe6 {[%clk 0:02:20]} 26. Nf6+ {[%clk 0:00:23]}  Kg7 {[%clk 0:02:19]} 27. Ng4 {[%clk 0:00:23]}  f6 {[%clk 0:02:17]} 28. Ne3 {[%clk 0:00:16]}  Rfd8 {[%clk 0:02:13]} 29. Rbd2 {[%clk 0:00:16]}  Bd7 {[%clk 0:02:13]} 30. h4 {[%clk 0:00:16]}  Rc5 {[%clk 0:02:13]} 31. g3 {[%clk 0:00:13]}  Rdc8 {[%clk 0:02:12]} 32. Ng2 {[%clk 0:00:12]}  Re5 {[%clk 0:02:11]} 33. Qd4 {[%clk 0:00:12]}  Rc4 {[%clk 0:02:09]} 34. Qb2 {[%clk 0:00:11]}  Rc6 {[%clk 0:02:03]} 35. Nf4 {[%clk 0:00:11]}  Re1+ {[%clk 0:02:03]} 36. Kh2 {[%clk 0:00:10]}  Qe4 {[%clk 0:02:03]} 37. Rxe1 {[%clk 0:00:09]}  Qxe1 {[%clk 0:02:04]} 38. Re2 {[%clk 0:00:09]}  Qf1 {[%clk 0:01:55]} 39. Re7+ {[%clk 0:00:10]}  Kh6 {[%clk 0:01:56]} 40. Qxf6 {[%clk 0:00:08]}  Qxf2+ {[%clk 0:01:56]} 0-1


[Site "https://www.chess.com"]

[Event "Titled Tuesday Blitz May 24 Early 2022"]
[White "Vakhlamov, Igor L."]
[Black "Jeet, Jain"]
[WhiteFideId "24126748"]
[BlackFideId "5073022"]
[WhiteElo "2401"]
[BlackElo "2028"]
[Result "1-0"]
[Round "05"]
[TimeControl "180+1"]
[Date "2022.05.24"]
[WhiteClock "0:00:47"]
[BlackClock "0:00:15"]

1. e4 {[%clk 0:02:59]}  c6 {[%clk 0:02:59]} 2. Nc3 {[%clk 0:02:58]}  d5 {[%clk 0:02:59]} 3. Nf3 {[%clk 0:02:57]}  d4 {[%clk 0:02:57]} 4. Ne2 {[%clk 0:02:55]}  c5 {[%clk 0:02:58]} 5. Ng3 {[%clk 0:02:50]}  Nc6 {[%clk 0:02:57]} 6. Bc4 {[%clk 0:02:48]}  e5 {[%clk 0:02:54]} 7. d3 {[%clk 0:02:48]}  Be7 {[%clk 0:02:55]} 8. O-O {[%clk 0:02:48]}  Nf6 {[%clk 0:02:54]} 9. Ng5 {[%clk 0:02:48]}  O-O {[%clk 0:02:54]} 10. f4 {[%clk 0:02:48]}  h6 {[%clk 0:02:44]} 11. Nf3 {[%clk 0:02:47]}  exf4 {[%clk 0:02:43]} 12. Bxf4 {[%clk 0:02:48]}  Na5 {[%clk 0:02:43]} 13. Bb3 {[%clk 0:02:39]}  Nxb3 {[%clk 0:02:42]} 14. axb3 {[%clk 0:02:40]}  Be6 {[%clk 0:02:29]} 15. Ne5 {[%clk 0:02:21]}  Nd7 {[%clk 0:02:27]} 16. Nxd7 {[%clk 0:02:19]}  Qxd7 {[%clk 0:02:26]} 17. h3 {[%clk 0:02:16]}  a6 {[%clk 0:02:24]} 18. Qh5 {[%clk 0:02:14]}  Qc6 {[%clk 0:02:14]} 19. Rf2 {[%clk 0:02:00]}  Bd7 {[%clk 0:01:57]} 20. Nf5 {[%clk 0:01:48]}  Bxf5 {[%clk 0:01:53]} 21. Qxf5 {[%clk 0:01:49]}  Qe6 {[%clk 0:01:46]} 22. Qh5 {[%clk 0:01:44]}  f5 {[%clk 0:01:43]} 23. Re1 {[%clk 0:01:34]}  Qd7 {[%clk 0:01:27]} 24. exf5 {[%clk 0:01:30]}  Rxf5 {[%clk 0:01:26]} 25. Rxe7 {[%clk 0:01:29]}  Qxe7 {[%clk 0:00:45]} 26. Qxf5 {[%clk 0:01:28]}  Rf8 {[%clk 0:00:46]} 27. Qe4 {[%clk 0:01:21]}  Qd7 {[%clk 0:00:42]} 28. Bg3 {[%clk 0:01:18]}  Re8 {[%clk 0:00:42]} 29. Qf5 {[%clk 0:01:14]}  Qc6 {[%clk 0:00:42]} 30. Kh2 {[%clk 0:01:10]}  Kh8 {[%clk 0:00:42]} 31. Qf3 {[%clk 0:01:08]}  Qd7 {[%clk 0:00:41]} 32. Re2 {[%clk 0:01:08]}  Rc8 {[%clk 0:00:40]} 33. Re4 {[%clk 0:01:06]}  b5 {[%clk 0:00:40]} 34. Qg4 {[%clk 0:01:06]}  Qxg4 {[%clk 0:00:32]} 35. hxg4 {[%clk 0:01:07]}  Kh7 {[%clk 0:00:30]} 36. Re7 {[%clk 0:01:00]}  h5 {[%clk 0:00:26]} 37. gxh5 {[%clk 0:01:00]}  Kh6 {[%clk 0:00:26]} 38. Be5 {[%clk 0:00:57]}  c4 {[%clk 0:00:26]} 39. bxc4 {[%clk 0:00:55]}  bxc4 {[%clk 0:00:26]} 40. Bxg7+ {[%clk 0:00:52]}  Kxh5 {[%clk 0:00:26]} 41. Bxd4 {[%clk 0:00:53]}  a5 {[%clk 0:00:27]} 42. Re5+ {[%clk 0:00:50]}  Kg4 {[%clk 0:00:26]} 43. Rxa5 {[%clk 0:00:49]}  cxd3 {[%clk 0:00:26]} 44. cxd3 {[%clk 0:00:50]}  Rd8 {[%clk 0:00:27]} 45. Ra4 {[%clk 0:00:50]}  Rd5 {[%clk 0:00:25]} 46. Bf2+ {[%clk 0:00:50]}  Kh5 {[%clk 0:00:24]} 47. Rd4 {[%clk 0:00:48]}  Rb5 {[%clk 0:00:24]} 48. b4 {[%clk 0:00:48]}  Kg5 {[%clk 0:00:23]} 49. Rc4 {[%clk 0:00:48]}  Rb7 {[%clk 0:00:21]} 50. Be3+ {[%clk 0:00:47]}  Kf5 {[%clk 0:00:20]} 51. g4+ {[%clk 0:00:47]}  Ke5 {[%clk 0:00:20]} 52. Re4+ {[%clk 0:00:47]}  Kd5 {[%clk 0:00:20]} 53. g5 {[%clk 0:00:48]}  Rg7 {[%clk 0:00:20]} 54. Kg3 {[%clk 0:00:48]}  Rg6 {[%clk 0:00:20]} 55. b5 {[%clk 0:00:48]}  Rd6 {[%clk 0:00:17]} 56. Rd4+ {[%clk 0:00:48]}  Ke5 {[%clk 0:00:15]} 57. Rxd6 {[%clk 0:00:47]} 1-0


[Site "https://www.chess.com"]

[Event "Titled Tuesday Blitz May 24 Early 2022"]
[White "Vignesh, N R"]
[Black "Mekhitarian, Krikor Sevag"]
[WhiteFideId "25012215"]
[BlackFideId "2107660"]
[WhiteElo "2363"]
[BlackElo "2598"]
[Result "0-1"]
[Round "05"]
[TimeControl "180+1"]
[Date "2022.05.24"]
[WhiteClock "0:00:13"]
[BlackClock "0:00:14"]

1. e4 {[%clk 0:03:00]}  e5 {[%clk 0:02:59]} 2. Nf3 {[%clk 0:03:00]}  Nf6 {[%clk 0:02:59]} 3. Nxe5 {[%clk 0:02:58]}  d6 {[%clk 0:03:00]} 4. Nf3 {[%clk 0:02:57]}  Nxe4 {[%clk 0:03:00]} 5. d4 {[%clk 0:02:57]}  d5 {[%clk 0:03:00]} 6. Bd3 {[%clk 0:02:58]}  Bd6 {[%clk 0:03:00]} 7. O-O {[%clk 0:02:58]}  O-O {[%clk 0:03:00]} 8. c4 {[%clk 0:02:58]}  c6 {[%clk 0:03:00]} 9. Nc3 {[%clk 0:02:57]}  Nxc3 {[%clk 0:03:00]} 10. bxc3 {[%clk 0:02:57]}  dxc4 {[%clk 0:03:01]} 11. Bxc4 {[%clk 0:02:57]}  Bf5 {[%clk 0:03:02]} 12. Re1 {[%clk 0:02:55]}  Nd7 {[%clk 0:03:00]} 13. Bd3 {[%clk 0:02:54]}  Bxd3 {[%clk 0:02:57]} 14. Qxd3 {[%clk 0:02:53]}  Re8 {[%clk 0:02:54]} 15. Rxe8+ {[%clk 0:02:51]}  Qxe8 {[%clk 0:02:54]} 16. a4 {[%clk 0:02:52]}  Nf6 {[%clk 0:02:50]} 17. Bg5 {[%clk 0:02:51]}  Nd5 {[%clk 0:02:25]} 18. a5 {[%clk 0:02:44]}  h6 {[%clk 0:02:21]} 19. Bd2 {[%clk 0:02:43]}  Qd7 {[%clk 0:02:16]} 20. g3 {[%clk 0:02:40]}  Re8 {[%clk 0:02:13]} 21. c4 {[%clk 0:02:39]}  Nf6 {[%clk 0:02:01]} 22. Kg2 {[%clk 0:02:39]}  Ne4 {[%clk 0:01:56]} 23. Re1 {[%clk 0:02:33]}  Nxd2 {[%clk 0:01:55]} 24. Rxe8+ {[%clk 0:02:31]}  Qxe8 {[%clk 0:01:55]} 25. Qxd2 {[%clk 0:02:27]}  Qe4 {[%clk 0:01:43]} 26. Qb2 {[%clk 0:02:23]}  g5 {[%clk 0:01:34]} 27. h3 {[%clk 0:02:05]}  h5 {[%clk 0:01:29]} 28. Qd2 {[%clk 0:01:32]}  f6 {[%clk 0:01:02]} 29. Qe1 {[%clk 0:00:46]}  Qxe1 {[%clk 0:01:01]} 30. Nxe1 {[%clk 0:00:47]}  Bc7 {[%clk 0:01:00]} 31. a6 {[%clk 0:00:46]}  bxa6 {[%clk 0:01:00]} 32. Nd3 {[%clk 0:00:45]}  a5 {[%clk 0:00:58]} 33. Nb2 {[%clk 0:00:42]}  Bb6 {[%clk 0:00:54]} 34. c5 {[%clk 0:00:41]}  Bc7 {[%clk 0:00:54]} 35. g4 {[%clk 0:00:40]}  hxg4 {[%clk 0:00:49]} 36. hxg4 {[%clk 0:00:41]}  Kf7 {[%clk 0:00:49]} 37. Kf3 {[%clk 0:00:41]}  Ke6 {[%clk 0:00:50]} 38. Ke4 {[%clk 0:00:41]}  Bf4 {[%clk 0:00:47]} 39. Na4 {[%clk 0:00:40]}  Bd2 {[%clk 0:00:45]} 40. Kd3 {[%clk 0:00:36]}  Be1 {[%clk 0:00:43]} 41. Ke2 {[%clk 0:00:34]}  Bb4 {[%clk 0:00:43]} 42. f3 {[%clk 0:00:31]}  Kd5 {[%clk 0:00:43]} 43. Kd3 {[%clk 0:00:31]}  Be1 {[%clk 0:00:35]} 44. Nb2 {[%clk 0:00:31]}  Bf2 {[%clk 0:00:28]} 45. Nc4 {[%clk 0:00:23]}  Bxd4 {[%clk 0:00:26]} 46. Nxa5 {[%clk 0:00:23]}  Bxc5 {[%clk 0:00:25]} 47. Nc4 {[%clk 0:00:20]}  Bb6 {[%clk 0:00:22]} 48. Nd2 {[%clk 0:00:19]}  a5 {[%clk 0:00:21]} 49. Ne4 {[%clk 0:00:19]}  Bd8 {[%clk 0:00:20]} 50. Nc3+ {[%clk 0:00:18]}  Ke5 {[%clk 0:00:20]} 51. Ne2 {[%clk 0:00:17]}  Bb6 {[%clk 0:00:19]} 52. Kc4 {[%clk 0:00:17]}  Be3 {[%clk 0:00:16]} 53. Kb3 {[%clk 0:00:17]}  Bc5 {[%clk 0:00:15]} 54. Ka4 {[%clk 0:00:16]}  Bb4 {[%clk 0:00:16]} 55. Kb3 {[%clk 0:00:16]}  c5 {[%clk 0:00:14]} 56. Kc4 {[%clk 0:00:13]}  a4 {[%clk 0:00:14]} 0-1


[Site "https://www.chess.com"]